Cogmind - Beta 16 @@@ ROGUE MODE // 2025.12.16 @ 22:43:21 Player: Jamba27 Result: Destroyed by DAS Turret with DAS Cannon Performance ------------- Evolutions (0) 0 Regions Visited (3) 600 Robots Destroyed (13) 65 Value Destroyed (372) 372 Prototype IDs (23) 460 Alien Tech Used (0) 0 Bonus (300) 300 TOTAL SCORE: 1797 Bonus ------- Aligned with FarCom 300 Cogmind --------- Core Integrity 0/250 Matter 290/300 Energy 91/100 System Corruption 1% Temperature Cool (0) Movement Core (350) Ox6 Location -10/Exiles Parts ------- > --- POWER (1) -------- (None) > --- PROPULSION (2) --- (None) > --- UTILITY (2) ------ Large Storage Unit Signal Interpreter > --- WEAPON (2) ------- (None) > --- INVENTORY (15) --- Deuterium Engine Improved Heat Sink Improved Heat Sink Structural Scanner Advanced Visual Processing Unit Improved Terrain Scanner Terrain Scan Processor Seismic Detector Weapon Shielding Hardened Medium Armor Plating Medium Laser Medium Laser Firepult Rocket Launcher Peak State ------------ > --- POWER ------------ Ion Engine > --- PROPULSION ------- Wheel > --- UTILITY ---------- Huge Storage Unit Signal Interpreter > --- WEAPON ----------- Shock Rifle Beam Cannon > --- INVENTORY -------- Deuterium Engine Improved Heat Sink Improved Heat Sink Large Storage Unit Structural Scanner Advanced Visual Processing Unit Improved Terrain Scanner Terrain Scan Processor Seismic Detector Weapon Shielding Hardened Medium Armor Plating Medium Laser Medium Laser Firepult Subdweller Machine Gun Rocket Launcher [Rating: 13] Favorites ----------- Power Ion Engine Engine Ion Engine Propulsion Light Treads Treads Light Treads Wheel Wheel Utility Signal Interpreter Device Seismic Detector Storage Huge Storage Unit Processor Signal Interpreter Weapon Assault Rifle Energy Gun Shock Rifle Energy Cannon Beam Cannon Ballistic Gun Assault Rifle Launcher Rocket Launcher Build | -11 -10 -10 -10 ------- Run | Yrd Mat Min Exi Slots Evolved . | . . . . Power . | . . . . Propulsion . | . . . . Utility . | . . . . Weapon . | . . . . Parts Attached 16 | 7 6 3 . Power 2 | 1 . 1 . Engine 2 | 1 . 1 . Core . | . . . . Reactor . | . . . . Propulsion 3 | 2 1 . . Treads 2 | 2 . . . Leg . | . . . . Wheel 1 | . 1 . . Hover . | . . . . Flight . | . . . . Utility 5 | 2 3 . . Device 1 | 1 . . . Storage 3 | 1 2 . . Processor 1 | . 1 . . Hackware . | . . . . Protection . | . . . . Artifact . | . . . . Weapon 6 | 2 2 2 . Energy Gun 1 | . . 1 . Energy Cannon 1 | . 1 . . Ballistic Gun 3 | 2 1 . . Ballistic Cannon . | . . . . Launcher 1 | . . 1 . Special Weapon . | . . . . Impact Weapon . | . . . . Slashing Weapon . | . . . . Piercing Weapon . | . . . . Special Melee Weapon . | . . . . Unidentified Prototypes . | . . . . Parts Lost 7 | . 2 1 4 Power 1 | . . . 1 Propulsion 3 | . 1 1 1 Utility . | . . . . Weapon 3 | . 1 . 2 Highest Loss Streak 4 | . 2 1 4 To Critical Strikes . | . . . . Average Backups 11 | 1 9 14 15 Power 1 | . 1 1 1 Propulsion . | . . . . Utility 6 | . 5 9 10 Weapon 3 | . 3 4 4 Tool/Special . | . . . . Unused Backups 15 | . 1 3 11 Power 3 | . . 2 1 Propulsion . | . . . . Utility 8 | . 1 1 6 Weapon 4 | . . . 4 Tool/Special . | . . . . Average Slot Usage (%) 95 | . 99 96 85 Engine 14 | . 14 14 14 Treads 17 | . 27 11 . Wheel 6 | . . 14 14 Device 2 | . 4 . . Storage 14 | . 14 14 14 Processor 11 | . 9 14 14 Energy Gun 4 | . . 3 14 Energy Cannon 6 | . . 13 14 Ballistic Gun 16 | . 27 6 . Peak Build Rating 13 | 7 9 11 13 Average Rating 9 | 5 7 9 12 On Entrance 6 | . 7 9 11 Avg Prop Armor Cover (%) 11 | . 11 12 . Naked Turns . | . . . . Heaviest Build 91 | 14 90 32 91 Greatest Support 40 | 40 40 10 10 Greatest Overweight (x) 9 | 2 2 3 9 Average Overweight (x) 3 | . 1 2 6 Largest Inventory Capacity 25 | 8 25 15 25 Average Capacity 20 | 7 22 15 21 Most Carried 17 | 4 15 15 17 Average Carried 11 | 1 9 14 16 Final Capacity 15 | 8 15 15 15 Final Carried 15 | 3 15 15 15 Class Distribution -------------------- 100% | Mutant Dominant Class ---------------- Mutant | -10/Materials Mutant | -10/Mines Mutant | -10/Exiles Resources | -11 -10 -10 -10 ----------- Run | Yrd Mat Min Exi Matter Collected 622 | 286 284 52 . Remotely . | . . . . Salvage Created 471 | 98 345 28 . Parts 27 | 4 20 3 . Haulers Intercepted . | . . . . Recyclers Shooed . | . . . . Parts Field Recycled . | . . . . Retrieved Matter . | . . . . Parts Self-Destructed . | . . . . Prevented . | . . . . Parts Restored . | . . . . Kills | -11 -10 -10 -10 ------- Run | Yrd Mat Min Exi Combat Hostiles Destroyed 10 | . 7 3 . Guns 9 | . 7 2 . Cannons 1 | . . 1 . Classes Destroyed 7 | 2 3 2 . Tunneler 1 | 1 . . . Recycler 1 | 1 . . . Watcher 1 | . 1 . . Swarmer 2 | . . 2 . Grunt 6 | . 6 . . Demolisher 1 | . . 1 . Subdweller 1 | . 1 . . Best Kill Streak 2 | 2 2 2 . Combat Bots Only 2 | . 2 2 . Max Kills in Single Turn 1 | 1 1 1 . Gunslinging . | . . . . Exploded . | . . . . Melee . | . . . . Uniques/NPCs Destroyed . | . . . . Combat | -11 -10 -10 -10 -------- Run | Yrd Mat Min Exi Hostile Shots Fired 81 | . 58 11 12 Missed 25 | . 18 2 5 Hits 56 | . 40 9 7 Projectile 56 | . 40 9 7 AOE 4 | . . 4 . Critical Strikes 1 | . 1 . . Damage Taken 1078 | . 648 202 228 Core 254 | . 124 103 27 Absorbed by Shields . | . . . . Core Remaining (%) 100 | 100 . . . Volleys Fired 53 | 4 43 6 . Largest 2 | 2 2 2 . Hottest 110 | 40 80 110 . Shots Fired 105 | 8 85 11 1 Gun 92 | 8 78 5 1 Cannon 13 | . 7 6 . Launcher . | . . . . Special . | . . . . Kinetic 89 | 8 78 3 . Thermal 13 | . 7 6 . Explosive . | . . . . Electromagnetic 3 | . . 2 1 Robot Hit Streak 19 | 5 19 6 . Robot Miss Streak 4 | 2 4 2 1 Penetration Max . | . . . . Secondary Targets 1 | . 1 . . Max Gunslinging Chain 1 | . 1 . . Shots Hit Robots 77 | 6 65 6 . Core Hits 25 | 4 17 4 . Critical Kills . | . . . . Critical Parts Destroyed . | . . . . Critical Strikes . | . . . . Melee Attacks . | . . . . Impact . | . . . . Slashing . | . . . . Piercing . | . . . . Sneak Attacks . | . . . . Combat Hostiles . | . . . . Follow-up Attacks . | . . . . Damage Inflicted 986 | 58 835 93 . Guns 846 | 58 748 40 . Cannons 140 | . 87 53 . Explosions . | . . . . Melee . | . . . . Ramming . | . . . . Kinetic 832 | 58 748 26 . Thermal 140 | . 87 53 . Explosive . | . . . . Electromagnetic 14 | . . 14 . Impact . | . . . . Slashing . | . . . . Piercing . | . . . . Highest Corruption 1 | . 1 1 1 Average Corruption 1 | . 1 1 1 Corruption Purged . | . . . . Corruption Blocked . | . . . . Effects 16 | . 6 4 6 Message Errors 5 | . 4 1 . Matter Fused 2 | . . 1 1 Heat Flow Errors 1 | . . 1 . Energy Discharges 2 | . . 1 1 Data Loss (minor) 4 | . 1 . 3 Data Loss (major) 1 | . 1 . . Misfires 1 | . . . 1 Overload Shots . | . . . . Overflow Damage . | . . . . Projectiles . | . . . . Explosions . | . . . . Melee . | . . . . Knockbacks . | . . . . Impact . | . . . . Kinetic . | . . . . Secondary . | . . . . Self-Inflicted Damage . | . . . . Shots . | . . . . Rammed . | . . . . Targets Rammed . | . . . . Kicked . | . . . . Crushed . | . . . . Highest Temperature 329 | . 72 329 10 Average Temperature 54 | . 23 95 7 Received Heat Transfer 264 | . 264 . . Siege Activations . | . . . . Martial Activations . | . . . . Shielding Activations . | . . . . Robots Disrupted . | . . . . Combat Hostiles . | . . . . Robots Corrupted . | . . . . Combat Hostiles . | . . . . Parts Fried . | . . . . Impact Corruptions . | . . . . Robots Melted . | . . . . Combat Hostiles . | . . . . Parts Melted . | . . . . Heat Transferred 296 | . 185 111 . Parts Sabotaged . | . . . . Parts Stolen . | . . . . Parts Stripped . | . . . . Power Chain Reactions . | . . . . Alert | -11 -10 -10 -10 ------- Run | Yrd Mat Min Exi Maximum Alert Level . | . . . . Low Security (%) 100 | 100 100 100 . Level 1 . | . . . . Level 2 . | . . . . Level 3 . | . . . . Level 4 . | . . . . Level 5 . | . . . . High Security . | . . . . Max Security . | . . . . Peak Influence 65 | 5 45 65 . Initial 3 | . 3 . . Average 9 | 1 8 16 . Influence Increases 292 | 10 197 85 . Destroy 0b10 Robot/C 180 | . 120 60 . Destroy 0b10 Robot/NC 15 | 10 5 . . Destroy Leader 52 | . 42 10 . Successful Hack 13 | . 13 . . Destroy Structure 2 | . 2 . . Lose Combat Pursuer 30 | . 15 15 . Influence Decreases 292 | 5 202 85 . Entered New Map 2 | . 2 . . Time Decay 274 | 5 184 85 . Lost Part 16 | . 16 . . Squads Dispatched 4 | . 3 1 . Investigation 2 | . 1 1 . Extermination . | . . . . Reinforcement 2 | . 2 . . Assault . | . . . . Garrison . | . . . . Intercept . | . . . . Searches Triggered . | . . . . Construction Impeded . | . . . . Haulers Reinforced . | . . . . Active Scanning Responses . | . . . . Cargo Convoy Interrupts . | . . . . Stealth | -11 -10 -10 -10 --------- Run | Yrd Mat Min Exi Distress Signals . | . . . . Communications Jammed . | . . . . Distress Signals . | . . . . Times Spotted 19 | . 13 5 1 Peak Tracking Total 11 | . 3 3 11 Tactical Retreats 4 | . 3 1 . Traps | -11 -10 -10 -10 ------- Run | Yrd Mat Min Exi Traps Triggered . | . . . . Indirectly . | . . . . Trap Hack Attempts . | . . . . Triggered . | . . . . Disarmed . | . . . . Reprogrammed . | . . . . Reused . | . . . . Traps Extracted . | . . . . Installed . | . . . . Triggered . | . . . . Machines | -11 -10 -10 -10 ---------- Run | Yrd Mat Min Exi Machines Disabled 1 | . . . 1 Max in Single Turn 1 | . . . 1 Machines Repaired . | . . . . Machines Dismantled . | . . . . Machines Sabotaged . | . . . . Overloaded Fab Kills . | . . . . Hacking | -11 -10 -10 -10 --------- Run | Yrd Mat Min Exi Machines Accessed 7 | . 5 1 1 Terminals 4 | . 4 . . Fabricators . | . . . . Repair Stations . | . . . . Recycling Units 1 | . 1 . . Scanalyzers . | . . . . Garrison Access . | . . . . Total Hacks 16 | . 14 1 1 Successful 5 | . 3 1 1 Failed 11 | . 11 . . Catastrophic 7 | . 7 . . Database Lockouts . | . . . . Manual 8 | . 7 . 1 Terminals 12 | . 12 . . Fabricators . | . . . . Repair Stations . | . . . . Recycling Units 2 | . 2 . . Scanalyzers . | . . . . Garrison Access . | . . . . Terminal Hacks 4 | . 2 1 1 Open Door 1 | . . 1 . Branch Access Points 1 | . 1 . . Terminal Index 1 | . 1 . . Proto ID Catalog 1 | . . . 1 Fabricator Hacks . | . . . . Repair Station Hacks . | . . . . Recycling Unit Hacks . | . . . . Scanalyzer . | . . . . Garrison Access Hacks . | . . . . Unauthorized Hacks 1 | . 1 . . Terminals 1 | . 1 . . Botnet 1 | . 1 . . Fabricators . | . . . . Repair Stations . | . . . . Recycling Units . | . . . . Scanalyzers . | . . . . Garrison Access . | . . . . Data Cores Recovered . | . . . . Used . | . . . . Hacking Detections 5 | . 5 . . Full Trace Events 3 | . 3 . . Feedback Events 1 | . 1 . . Corruption 1 | . 1 . . Feedback Blocked . | . . . . Robot Schematics Acquired . | . . . . Robots Built . | . . . . Authchips . | . . . . Time . | . . . . Total Robot Build Rating . | . . . . Part Schematics Acquired . | . . . . Parts Built . | . . . . Authchips . | . . . . Time . | . . . . Total Part Build Rating . | . . . . Part Studies Acquired . | . . . . Parts Repaired . | . . . . Time . | . . . . Parts Recycled . | . . . . Recycled Matter . | . . . . Retrieved Matter . | . . . . Retrieved Components . | . . . . Parts Scanalyzed . | . . . . Part Schematics Acquired . | . . . . Parts Damaged . | . . . . Bothacking | -11 -10 -10 -10 ------------ Run | Yrd Mat Min Exi Used RIF Installer . | . . . . Robots Hacked . | . . . . Non-combat . | . . . . Combat . | . . . . Robot Hacks Applied . | . . . . Relay Couplers Released . | . . . . Fabnet Peak Effective % . | . . . . Robots Rewired . | . . . . Allies Hacked . | . . . . Hacks Repelled . | . . . . Allies | -11 -10 -10 -10 -------- Run | Yrd Mat Min Exi Total Allies . | . . . . Largest Group . | . . . . Highest-Rated Group . | . . . . Highest-Rated Ally . | . . . . Total Orders . | . . . . Ally Attacks . | . . . . Total Damage . | . . . . Kills . | . . . . Allies Corrupted . | . . . . Allies Melted . | . . . . Intel | -11 -10 -10 -10 ------- Run | Yrd Mat Min Exi Active Infowar (turns) 321 | 1 320 . . Seismic 321 | 1 320 . . Robot Analysis Total . | . . . . Derelict Logs Recovered 1 | . . 1 . Drone Launches . | . . . . Drone Recoveries . | . . . . Exploration | -11 -10 -10 -10 ------------- Run | Yrd Mat Min Exi Turns Passed 1887 | 99 1051 272 465 Spaces Moved 838 | 49 329 194 266 Core 5 | 5 . . . Treads 346 | 44 302 . . Legs . | . . . . Wheels 487 | . 27 194 266 Hover . | . . . . Flight . | . . . . Fastest Speed 50 | 50 110 110 110 Average Speed 197 | 152 269 118 173 Slowest Speed 320 | 160 320 125 215 Overloaded Moves . | . . . . Propulsion Burnouts . | . . . . Robots Hopped . | . . . . Potential Cave-ins . | . . . . Cave-ins Triggered . | . . . . Exploration Rate (%) 41 | 5 58 37 65 Regions Visited 3 Branch Regions 2 Pre-discovered Areas 1 | . . 1 . Known Exits Taken 2 | . 1 1 . Unknown Exits Taken 1 | 1 . . . Scrap Searched 1 | . . 1 . Spaces Dug . | . . . . Terrain Destroyed . | . . . . Melee . | . . . . Projectile . | . . . . AOE . | . . . . Terrain Rammed . | . . . . Walls Destroyed . | . . . . Machines Disabled . | . . . . Actions | -11 -10 -10 -10 --------- Run | Yrd Mat Min Exi Total 964 | 63 405 227 269 Wait 26 | . 13 13 . Move 835 | 48 328 193 266 Hop . | . . . . Pick Up 23 | 4 13 5 1 Fast Attach 7 | 6 1 . . Attach 2 | 1 1 . . Detach . | . . . . Swap 10 | . 4 4 2 Drop 8 | . 2 6 . Fire 53 | 4 43 6 . Melee . | . . . . Ram . | . . . . Kick . | . . . . Crush . | . . . . Escape Stasis . | . . . . Rewire . | . . . . Trap . | . . . . Miscellaneous . | . . . . Route ------- -11/Scrapyard -10/Materials (discovered 4 exits: [*Mat] / *Min x2 / *Sub) -10/Mines -10/Exiles History --------- Turn | Location | Event 6 | -11/Scrapyard | Discovered new exit (range 15) 100 | -11/Scrapyard | Entered Materials 283 | -10/Materials | Discovered new exit (range 8) 308 | -10/Materials | Build established: Mutant 421 | -10/Materials | Identified exit to Subcaves 567 | -10/Materials | Discovered new exit (range 8) 900 | -10/Materials | Derelicts attacked the area 1010 | -10/Materials | Discovered new exit (range 10) 1051 | -10/Materials | Identified exit to Mines 1151 | -10/Materials | Entered Mines 1158 | -10/Mines | Received a Rocket Launcher from a helpful Derelict 1166 | -10/Mines | Learned location of Zion (-6) 1195 | -10/Mines | Core integrity fell below 50% 1269 | -10/Mines | Assembled infested the area 1291 | -10/Mines | Met a Derelict shopkeep closing up shop 1367 | -10/Mines | Met 8R-AWN 1368 | -10/Mines | Core integrity fell below 20% 1418 | -10/Mines | Discovered new exit (range 5) 1421 | -10/Mines | Identified exit to Exiles 1423 | -10/Mines | Entered Exiles 1453 | -10/Exiles | Welcomed by 8R-AWN 1476 | -10/Exiles | Met EX-HEX 1513 | -10/Exiles | Met EX-BIN 1533 | -10/Exiles | Aligned with FarCom system 1535 | -10/Exiles | Given EX-Vault access code 1563 | -10/Exiles | Opened EX-Vault 1575 | -10/Exiles | Found Firepult 1619 | -10/Exiles | Warned to stay clear of 0b10 Research branches 1677 | -10/Exiles | Met EX-DEC 1787 | -10/Exiles | Visited The Gauntlet 1881 | -10/Exiles | Attacked by the Exiles 1888 | -10/Exiles | Destroyed by DAS Turret with DAS Cannon Last Messages --------------- EX-DEC: Ah I see we have a visitor. One wrong move in here and I'll invert your atomic chain! 01679_ EX-DEC: "Oops, I hope HEX didn't hear that..." 01786_ System corrupted: Component data lost. 01880_ System corrupted: FCS attempts to trigger Shock Rifle. 01880_ System corrupted: Shock Rifle misfires. 01880_ Machine disabled. 01881_ EXILES: Hostile robot within lab perimeter. Defensive protocols time, folks! 01883_ EX-DEC: "Let's see what this bad boy can do..." 01883_ EX-DEC deploys DAS Turret. 01883_ Ion Engine destroyed. 01883_ Knocked back. 01884_ Beam Cannon destroyed. 01888_ Shock Rifle destroyed. 01888_ Wheel destroyed. Map ----- +----------------------------------------------------+ | ???????????????????????????????????#""""""?# # | | ???????????????????????????????????##"###??# # | | ???????????????????????????????????????????# # | | ???????????????????????????????????????????# # | | ??????????????????????????????????????????## # | | ??????????????????????????????????????????#" | | ??????????????????????????????????????????#" | | ??????????????????????????????????????????#" | | ??????????????????????????????????????????#" | | ??????????????????????????????????????????#" | | ??????????????????????????????????????????#" | | ??????????????????????????????????????????## | | ?????????????????????????????" ????????????# | | ????????????????????????????"" ???????????#" | | ????????????????????????????"" ??????????#" | | ???????????????????????????? ""?????????#" | | ????????????? #?????????????" "?????????##" # | | ????????????? ????????????# #????????##"" # | | ????????????" #####??##### ###?######"" # | | ????????????" """###;#X# #"###""""""" # | | ????????????" """""" " "" | | ?????????????# "" """ " | | ??????????????# " " | | ????????????????# | | ??????????????????# | | ???????????????????# % @ | | ???????????????????## | | ????????????????????##" | | ?????????????????????#""" % """""" | | ????????????????????##" ![ ######""" | | ????????????????????#"" ""##????##### | | ????????????????????#""" """##?????????# | | ???????????????????#""" """##??????????? | | ???????????????????#""" ""#???????????? | | ???????????????????#"" ########?????? | | ???????????????????#"" ## ####""" | | ???????????????????#"" t """" | | ???????????????????##"" | | ????????????????????#"""" | | ????????????????????## | | ?????????????????????#" " " | | ?????????????????????#"""" ""## ##" | | ?????????????????????#"" ""###?? #?? | | ?????????????????????#" """"##???????? | | ?????????????????????#""" """#????????? | | ?????????????????????## ""##????????? | | ??????????????????????#"" """##?????????? | | ??????????????????????##""" ##??????????? | | ???????????????????????##"""" ##???????????? | | ????????????????????????### #????????????? | +----------------------------------------------------+ Best States ------------- Heat Dissipation 25 Energy Generation 10 Energy Capacity 250 Matter Stores 300 Matter Capacity 300 Sight Range 16 Terrain Scan Density 10 Evasion (%) 40 Recoil Reduction 2 Item Schematics ----------------- None Robot Schematics ------------------ None Fabricated ------------ Nothing Repaired ---------- Nothing Studied --------- None Alien Tech Used ----------------- None Achievements -------------- None Challenges ------------ None Game ------ Seed ArchitectShockboltPick Manual? 0 Play Time 00:15:57 Cumulative 55.0 hours Start 2025.12.16 @ 22:26:30 End 2025.12.16 @ 22:43:21 Sessions 1 Manual Loads 0 Difficulty Rogue Special Mode None Game No. 42 Rogue 42 Adventurer 0 Explorer 0 Win Type - Total 0 Types 0/0/0/0/0/0/0/0/0/0 Lore% 26 Gallery% 39 Achievement% 34 Wizard Run 0 Options --------- Layout 1 ASCII 0 Keyboard 0 Movement Mouse Keybinds 0 Fullscreen 1 Font 24/Smallcaps Map View 50x35 Zoom Use 0% Tactical HUD 1 Map Filters NONE Filters NONE Steam 1 RUN: b35ba884-2120-4fba-b854-f4bd37467c5e